Workbook

Sheet Sheet1
G1: УТВЕРЖДАЮ
H2: Директор ООО "Сибирская строительная компания"
G3: И.Л. Гузов
A5: т. 8 (3842) 34-56-36 , 34-56-37
A6: 650024,г. Кемерово,ул.Ю.Двужильного 10 офис 5
A7: Email: sibtk@yandex.ru
A8: Сайт:
A10: ПРОДКУЦИЯ ООО "СИБИРСКАЯ СТРОИТЕЛЬНАЯ КОМПАНИЯ"
B11: на дату с 22 марта 2010 года.
C12: Профилированные погонажные изделия.
A18: Облицовочная доска (Евровагонка) | I18: Блок-хаус
E19: Доска пола
A20: Порода — сосна и лиственница
A21: Сушка камерная W 10 +/- 2 %
A22: Наименование продукции | D22: Отпускные цены | E22: отпускные цены руб.
D23: кол-во м² | E23: Сорт1 / Сорт В | G23: Сорт2 / Сорт С | I23: СортНК/ некондиция
D24: В м3 | E24: за 1 м² | F24: за 1 м³ | G24: за 1 м² | H24: за 1 м³ | I24: за 1 м² | J24: за 1 м³
A25: Блок-хаус сращ.
A26: 21 х 100 х 2500/2900/3000/4000 | D26: =1000/21 -> 47.61904762 | E26: =F26/D26 -> 478.8 | F26: 22800 | G26: =H26/D26 -> 304.5 | H26: 14500 | I26: =J26/D26 -> 199.5 | J26: 9500
A27: 27 х 105 х 2500/2900/3000/4000 | D27: =1000/27 -> 37.03703704 | E27: =F27/D27 -> 615.6 | F27: 22800 | G27: =H27/D27 -> 391.5 | H27: 14500 | I27: =J27/D27 -> 256.5 | J27: 9500
A28: 30 х 120 х 2500/2900/3000/4000 | D28: =1000/30 -> 33.33333333 | E28: =F28/D28 -> 684 | F28: 22800 | G28: =H28/D28 -> 435 | H28: 14500 | I28: =J28/D28 -> 285 | J28: 9500
A29: 30 х 105 х 2500/2900/3000/4000 | D29: 33.333 | E29: =F29/D29 -> 684.0068401 | F29: 22800 | G29: 300 | H29: 14500 | I29: 180 | J29: 9500
A30: 35 х 120 х 2500/2900/3000/4000 | D30: =1000/35 -> 28.57142857 | E30: =F30/D30 -> 798 | F30: 22800 | G30: =H30/D30 -> 507.5 | H30: 14500 | I30: =J30/D30 -> 332.5 | J30: 9500
A31: Блок-хаус сращ.(лиственница)
A32: 21 х 100 х 2500/2900/3000/4000 | D32: =1000/21 -> 47.61904762 | E32: =F32/D32 -> 438.9 | F32: 20900 | G32: =H32/D32 -> 273 | H32: 13000 | I32: =J32/D32 -> 163.8 | J32: 7800
A33: 27 х 105 х 2500/2900/3000/4000 | D33: =1000/27 -> 37.03703704 | E33: =F33/D33 -> 564.3 | F33: 20900 | G33: =H33/D33 -> 351 | H33: 13000 | I33: =J33/D33 -> 210.6 | J33: 7800
A34: 30 х 105 х 2500/2900/3000/4000 | D34: 33.333 | E34: =F34/D34 -> 627.0062701 | F34: 20900 | G34: 315 | H34: 13000 | I34: 180 | J34: 7800
A35: 30 х 120 х 2500/2900/3000/4000 | D35: =1000/30 -> 33.33333333 | E35: =F35/D35 -> 627 | F35: 20900 | G35: =H35/D35 -> 390 | H35: 13000 | I35: =J35/D35 -> 234 | J35: 7800
A36: 35 х 120 х 2500/2900/3000/4000 | D36: =1000/35 -> 28.57142857 | E36: =F36/D36 -> 731.5 | F36: 20900 | G36: =H36/D36 -> 455 | H36: 13000 | I36: =J36/D36 -> 273 | J36: 7800
A37: Блок-хаус цельный
A38: 21 х 100 х 2500/2900/3000/4000 | D38: =1000/21 -> 47.61904762 | E38: =F38/D38 -> 478.8 | F38: 22800 | G38: =H38/D38 -> 304.5 | H38: 14500 | I38: =J38/D38 -> 199.5 | J38: 9500
A39: 27 х 105 х 2500/2900/3000/4000 | D39: =1000/27 -> 37.03703704 | E39: =F39/D39 -> 615.6 | F39: 22800 | G39: =H39/D39 -> 391.5 | H39: 14500 | I39: =J39/D39 -> 256.5 | J39: 9500
A40: 30 х 105 х 2500/2900/3000/4000 | D40: 33.333 | E40: =F40/D40 -> 684.0068401 | F40: 22800 | G40: 300 | H40: 14500 | I40: 180 | J40: 9500
A41: 30 х 120 х 2500/2900/3000/4000 | D41: =1000/30 -> 33.33333333 | E41: =F41/D41 -> 684 | F41: 22800 | G41: =H41/D41 -> 435 | H41: 14500 | I41: =J41/D41 -> 285 | J41: 9500
A42: 35 х 120 х 2500/2900/3000/4000 | D42: =1000/35 -> 28.57142857 | E42: =F42/D42 -> 798 | F42: 22800 | G42: =H42/D42 -> 507.5 | H42: 14500 | I42: =J42/D42 -> 332.5 | J42: 9500
A43: Облицовочная доска
A44: 12 х 65 х 2500/2900/3000/4000 | D44: =1000/12 -> 83.33333333 | E44: =F44/D44 -> 330 | F44: 27500 | G44: =H44/D44 -> 249.6 | H44: 20800 | I44: =J44/D44 -> 124.8 | J44: 10400
A45: 12 х 105 х 2500/2900/3000/4000 | D45: 83.33333333 | E45: =F45/D45 -> 330 | F45: 27500 | G45: =H45/D45 -> 249.6 | H45: 20800 | I45: =J45/D45 -> 124.8 | J45: 10400
A46: 12 х 120 х 2500/2900/3000/4000 | D46: 83.33333333 | E46: =F46/D46 -> 330 | F46: 27500 | G46: =H46/D46 -> 249.6 | H46: 20800 | I46: =J46/D46 -> 124.8 | J46: 10400
A47: Облицовочная доска сращ.
A48: 12 х 65 х 2500/2900/3000/4000 | D48: 83.33333333 | E48: =F48/D48 -> 330 | F48: 27500 | G48: =H48/D48 -> 249.6 | H48: 20800 | I48: =J48/D48 -> 124.8 | J48: 10400
A49: 12 х 105 х 2500/2900/3000/4000 | D49: 83.33333333 | E49: =F49/D49 -> 330 | F49: 27500 | G49: =H49/D49 -> 249.6 | H49: 20800 | I49: =J49/D49 -> 124.8 | J49: 10400
A50: 12 х 120 х 2500/2900/3000/4000 | D50: 83.33333333 | E50: =F50/D50 -> 330 | F50: 27500 | G50: =H50/D50 -> 249.6 | H50: 20800 | I50: =J50/D50 -> 124.8 | J50: 10400
A51: Облицовочная доска цельная и сращ.(лиственница)
A52: 12 х 105 х 2500/2900/3000/4000 | D52: 83.33333333 | E52: =F52/D52 -> 330 | F52: 27500 | G52: =H52/D52 -> 249.6 | H52: 20800 | I52: =J52/D52 -> 124.8 | J52: 10400
A53: 12 х 120 х 2500/2900/3000/4000 | D53: 83.33333333 | E53: =F53/D53 -> 330 | F53: 27500 | G53: =H53/D53 -> 249.6 | H53: 20800 | I53: =J53/D53 -> 124.8 | J53: 10400
A54: Доска пола
A55: 27 х 105 х2500/2900/3000/4000 | D55: =1000/27 -> 37.03703704 | E55: =F55/D55 -> 615.6 | F55: 22800 | G55: =H55/D55 -> 391.5 | H55: 14500 | I55: =J55/D55 -> 256.5 | J55: 9500
A56: 27 х 120 х 2500/2900/3000/4000 | D56: =1000/27 -> 37.03703704 | E56: =F56/D56 -> 615.6 | F56: 22800 | G56: =H56/D56 -> 391.5 | H56: 14500 | I56: =J56/D56 -> 256.5 | J56: 9500
A57: 30 х 105 х 2500/2900/3000/4000 | D57: =1000/30 -> 33.33333333 | E57: =F57/D57 -> 684 | F57: 22800 | G57: =H57/D57 -> 435 | H57: 14500 | I57: =J57/D57 -> 285 | J57: 9500
A58: 30 х 120 х 2500/2900/3000/4000 | D58: =1000/30 -> 33.33333333 | E58: =F58/D58 -> 684 | F58: 22800 | G58: =H58/D58 -> 435 | H58: 14500 | I58: =J58/D58 -> 285 | J58: 9500
A59: 35 х 120 х 2500/2900/3000/4000 | D59: =1000/35 -> 28.57142857 | E59: =F59/D59 -> 798 | F59: 22800 | G59: =H59/D59 -> 507.5 | H59: 14500 | I59: =J59/D59 -> 332.5 | J59: 9500
A60: Доска пола сращ. И клеено - сращ.
A61: 27 х 105 х2500/2900/3000/4000 | D61: =1000/27 -> 37.03703704 | E61: =F61/D61 -> 615.6 | F61: 22800 | G61: =H61/D61 -> 391.5 | H61: 14500 | I61: =J61/D61 -> 256.5 | J61: 9500
A62: 27 х 120 х 2500/2900/3000/4000 | D62: =1000/27 -> 37.03703704 | E62: 615.6 | F62: 22800 | G62: 391.5 | H62: 14500 | I62: 256.5 | J62: 9500
A63: 30 х 105 х 2500/2900/3000/4000 | D63: =1000/30 -> 33.33333333 | E63: 684 | F63: 22800 | G63: 435 | H63: 14500 | I63: 285 | J63: 9500
A64: 30 х 120 х 2500/2900/3000/4000 | D64: =1000/30 -> 33.33333333 | E64: 684 | F64: 22800 | G64: 435 | H64: 14500 | I64: 285 | J64: 9500
A65: 35 х 105 х 2500/2900/3000/4000 | D65: =1000/35 -> 28.57142857 | E65: 798 | F65: 22800 | G65: 507.5 | H65: 14500 | I65: 332.5 | J65: 9500
A66: 35 х 120 х 2500/2900/3000/4000 | D66: =1000/35 -> 28.57142857 | E66: 798 | F66: 22800 | G66: 507.5 | H66: 14500 | I66: 332.5 | J66: 9500
A67: Доска пола сращ. И клеено – сращ.(лиственница)
A68: 27 х 105 х2500/2900/3000/4000 | D68: =1000/27 -> 37.03703704 | E68: =F68/D68 -> 580.5 | F68: 21500 | G68: =H68/D68 -> 351 | H68: 13000 | I68: =J68/D68 -> 210.6 | J68: 7800
A69: 30 х 105 х 2500/2900/3000/4000 | D69: =1000/30 -> 33.33333333 | E69: =F69/D69 -> 645 | F69: 21500 | G69: =H69/D69 -> 390 | H69: 13000 | I69: =J69/D69 -> 234 | J69: 7800
A70: 30 х 120 х 2500/2900/3000/4000 | D70: =1000/30 -> 33.33333333 | E70: =F70/D70 -> 645 | F70: 21500 | G70: =H70/D70 -> 390 | H70: 13000 | I70: =J70/D70 -> 234 | J70: 7800
A71: Имитация бруса ( сосна) б/с
A72: 20 х 190 х 2250 | D72: =1000/20 -> 50 | E72: =F72/D72 -> 390 | F72: 19500 | G72: =H72/D72 -> 236 | H72: 11800 | I72: =J72/D72 -> 156 | J72: 7800
A73: Брус клееный, профилированный (под заказ)
F74: 22000
A79: Сухие, строганные погонажные изделия
A81: Наименование продукции | D81: Отпускные цены
D82: кол-во м² | E82: Сорт1 / Сорт В | G82: Сорт2 | I82: Сорт С | K82: СортНК/ некондиция
D83: В м3 | E83: за 1 м² | F83: за 1 м³ | G83: за 1 м² | H83: за 1 м³ | I83: за 1 м² | J83: за 1 м³ | K83: за 1 м² | L83: за 1 м³
A84: Брусок сращ.
A85: 27 х 40 х 2700/2985/3000/3985/4000 | D85: =1000/27 -> 37.03703704 | E85: =F85/D85 -> 553.5 | F85: 20500 | G85: =H85/D85 -> 351 | H85: 13000 | I85: =J85/D85 -> 229.5 | J85: 8500 | K85: =L85/D85 -> 108 | L85: 4000
A86: 27 х 45 х 2700/2985/3000/3985/4000 | D86: 37.037 | E86: 533.25 | F86: 20500 | G86: 287.82 | H86: 13000 | I86: 148.5 | J86: 8500 | K86: 105 | L86: 4000
A87: 30 х 40 х 2700/2985/3000/3985/4000 | D87: =1000/30 -> 33.33333333 | E87: =F87/D87 -> 615 | F87: 20500 | G87: =H87/D87 -> 390 | H87: 13000 | I87: =J87/D87 -> 255 | J87: 8500 | K87: =L87/D87 -> 120 | L87: 4000
A88: 30 х 45 х 2700/2985/3000/3985/4000 | D88: =1000/30 -> 33.33333333 | E88: =F88/D88 -> 615 | F88: 20500 | G88: =H88/D88 -> 390 | H88: 13000 | I88: =J88/D88 -> 255 | J88: 8500 | K88: =L88/D88 -> 120 | L88: 4000
A89: 35 х 45 х 2700/2985/3000/3985/4000 | D89: =1000/35 -> 28.57142857 | E89: =F89/D89 -> 717.5 | F89: 20500 | G89: =H89/D89 -> 455 | H89: 13000 | I89: =J89/D89 -> 297.5 | J89: 8500 | K89: =L89/D89 -> 140 | L89: 4000
A90: 45 х 45 х 2700/2985/3000/3985/4000 | D90: 22.222 | E90: 888.75 | F90: 20500 | G90: 479.7 | H90: 13000 | I90: 270 | J90: 8500 | K90: 105 | L90: 4000
A91: 45 х 60 х 2700/2985/3000/3985/4000 | D91: 22.222 | E91: 888.75 | F91: 20500 | G91: 479.7 | H91: 13000 | I91: 270 | J91: 8500 | K91: 135 | L91: 4000
A92: Брусок цельный
A93: 45 х 60 х 2700/2985/3000/3985/4000 | D93: =1000/45 -> 22.22222222 | E93: =F93/D93 -> 922.5 | F93: 20500 | G93: =H93/D93 -> 585 | H93: 13000 | I93: =J93/D93 -> 382.5 | J93: 8500 | K93: =L93/D93 -> 180 | L93: 4000
A94: 27 х 40 х 2700/2985/3000/3985/4000 | D94: =1000/27 -> 37.03703704 | E94: =F94/D94 -> 553.5 | F94: 20500 | G94: =H94/D94 -> 351 | H94: 13000 | I94: =J94/D94 -> 229.5 | J94: 8500 | K94: =L94/D94 -> 108 | L94: 4000
A95: 27 х 45 х 2700/2985/3000/3985/4000 | D95: 37.037 | E95: 533.25 | F95: 20500 | G95: 287.82 | H95: 13000 | I95: 148.5 | J95: 8500 | K95: 90 | L95: 4000
A96: 30 х 40 х 2700/2985/3000/3985/4000 | D96: =1000/30 -> 33.33333333 | E96: =F96/D96 -> 615 | F96: 20500 | G96: =H96/D96 -> 390 | H96: 13000 | I96: =J96/D96 -> 255 | J96: 8500 | K96: =L96/D96 -> 120 | L96: 4000
A97: 30 х 45 х 2700/2985/3000/3985/4000 | D97: =1000/30 -> 33.33333333 | E97: =F97/D97 -> 615 | F97: 20500 | G97: =H97/D97 -> 390 | H97: 13000 | I97: =J97/D97 -> 255 | J97: 8500 | K97: =L97/D97 -> 120 | L97: 4000
A98: 35 х 45 х 2700/2985/3000/3985/4000 | D98: =1000/35 -> 28.57142857 | E98: =F98/D98 -> 717.5 | F98: 20500 | G98: =H98/D98 -> 455 | H98: 13000 | I98: =J98/D98 -> 297.5 | J98: 8500 | K98: =L98/D98 -> 140 | L98: 4000
A99: 45 х 45 х 2700/2985/3000/3985/4000 | D99: =1000/45 -> 22.22222222 | E99: =F99/D99 -> 922.5 | F99: 20500 | G99: =H99/D99 -> 585 | H99: 13000 | I99: =J99/D99 -> 382.5 | J99: 8500 | K99: =L99/D99 -> 180 | L99: 4000
A100: Доска калиброванная
A101: 27 х 105 х 2700/2985/3000/3985/4000 | D101: 37.037 | E101: 529.2 | F101: 20500 | G101: 291.6 | H101: 13000 | I101: 164.7 | J101: 9500 | K101: 94.5 | L101: 4500
A102: 27 х 120 х 2700/2985/3000/3985/4000 | D102: 37.037 | E102: =F102/D102 -> 553.5005535 | F102: 20500 | G102: =H102/D102 -> 351.000351 | H102: 13000 | I102: =J102/D102 -> 256.5002565 | J102: 9500 | K102: =L102/D102 -> 121.5001215 | L102: 4500
A103: 15 х 40 х 2700/2985/3000/3985/4000 | D103: =1000/15 -> 66.66666667 | E103: 307.5 | F103: 20500 | G103: 195 | H103: 13000 | I103: 142.5 | J103: 9500 | K103: 67.5 | L103: 4500
A104: 15 х 45 х 2700/2985/3000/3985/4000 | D104: =1000/15 -> 66.66666667 | E104: 307.5 | F104: 20500 | G104: 195 | H104: 13000 | I104: 142.5 | J104: 9500 | K104: 67.5 | L104: 4500
A105: 18 х 45 х 2700/2985/3000/3985/4000 | D105: =1000/18 -> 55.55555556 | E105: 369 | F105: 20500 | G105: 234 | H105: 13000 | I105: 171 | J105: 9500 | K105: 81 | L105: 4500
A106: 30 х 90 х 2700/2985/3000/3985/4000 | D106: =1000/30 -> 33.33333333 | E106: 615 | F106: 20500 | G106: 390 | H106: 13000 | I106: 285 | J106: 9500 | K106: 135 | L106: 4500
A107: 30 х 120 х 2700/2985/3000/3985/4000 | D107: =1000/30 -> 33.33333333 | E107: 615 | F107: 20500 | G107: 390 | H107: 13000 | I107: 285 | J107: 9500 | K107: 135 | L107: 4500
A108: 45 х 90 х 2700/2985/3000/3985/4000 | D108: =1000/45 -> 22.22222222 | E108: 922.5 | F108: 20500 | G108: 585 | H108: 13000 | I108: 427.5 | J108: 9500 | K108: 202.5 | L108: 4500
A109: 45 х 120 х 2700/2985/3000/3985/4000 | D109: =1000/45 -> 22.22222222 | E109: 922.5 | F109: 20500 | G109: 585 | H109: 13000 | I109: 427.5 | J109: 9500 | K109: 202.5 | L109: 4500
A110: 45 х 105 х 2700/2985/3000/3985/4000 | D110: =1000/45 -> 22.22222222 | E110: 922.5 | F110: 20500 | G110: 585 | H110: 13000 | I110: 427.5 | J110: 9500 | K110: 202.5 | L110: 4500
A111: Доска калиброванная сращ.
A112: 27 х 105 х 2700/2985/3000/3985/4000 | D112: =1000/27 -> 37.03703704 | E112: =F112/D112 -> 553.5 | F112: 20500 | G112: =H112/D112 -> 351 | H112: 13000 | I112: =J112/D112 -> 256.5 | J112: 9500 | K112: =L112/D112 -> 121.5 | L112: 4500
A113: 30 х 105/120 х 2700/2985/3000/3985/4000 | D113: =1000/30 -> 33.33333333 | E113: 615 | F113: 20500 | G113: 390 | H113: 13000 | I113: =J113/33.3 -> 285.2852853 | J113: 9500 | K113: =L113/33.3 -> 135.1351351 | L113: 4500
A114: 27 х 90 х 2700/2985/3000/3985/4000 | D114: =1000/27 -> 37.03703704 | E114: 553.5 | F114: 20500 | G114: 351 | H114: 13000 | I114: =J114/D114 -> 256.5 | J114: 9500 | K114: =L114/D114 -> 121.5 | L114: 4500
A115: 21 х 40 х 2700/2985/3000/3985/4000 | D115: =1000/21 -> 47.61904762 | E115: 430.5 | F115: 20500 | G115: 273 | H115: 13000 | I115: =J115/D115 -> 199.5 | J115: 9500 | K115: =L115/D115 -> 94.5 | L115: 4500
A116: 45 х 105 х 2700/2985/3000/3985/4000 | D116: =1000/45 -> 22.22222222 | E116: 922.5 | F116: 20500 | G116: 585 | H116: 13000 | I116: =J116/D116 -> 427.5 | J116: 9500 | K116: =L116/D116 -> 202.5 | L116: 4500
A117: 45 х 90 х 2700/2985/3000/3985/4000 | D117: =1000/45 -> 22.22222222 | E117: 922.5 | F117: 20500 | G117: 585 | H117: 13000 | I117: =J117/D117 -> 427.5 | J117: 9500 | K117: =L117/D117 -> 202.5 | L117: 4500
A118: 45 х 120 х 2700/2985/3000/3985/4000 | D118: =1000/45 -> 22.22222222 | E118: 922.5 | F118: 20500 | G118: 585 | H118: 13000 | I118: =J118/D118 -> 427.5 | J118: 9500 | K118: =L118/D118 -> 202.5 | L118: 4500
A119: Доска калиброванная цельная и сращ.(лиственница)
A120: 27 х 105 х 2700/2985/3000/3985/4000 | D120: =1000/27 -> 37.03703704 | E120: =F120/D120 -> 553.5 | F120: 20500 | G120: =H120/D120 -> 351 | H120: 13000 | I120: =J120/D120 -> 229.5 | J120: 8500 | K120: =L120/D120 -> 121.5 | L120: 4500
A121: 30 х 120 х 2700/2985/3000/3985/4000 | D121: =1000/30 -> 33.33333333 | E121: =F121/D121 -> 615 | F121: 20500 | G121: =H121/D121 -> 390 | H121: 13000 | I121: =J121/D121 -> 255 | J121: 8500 | K121: =L121/D121 -> 135 | L121: 4500
A122: 45 х 90 х 2700/2985/3000/3985/4000 | D122: =1000/45 -> 22.22222222 | E122: =F122/D122 -> 922.5 | F122: 20500 | G122: =H122/D122 -> 585 | H122: 13000 | I122: =J122/D122 -> 382.5 | J122: 8500 | K122: =L122/D122 -> 202.5 | L122: 4500
A123: Доска калиброванная клеено-сращ.
A124: 45 х 105 х 2700/2985/3000/3985/4000 | D124: =1000/45 -> 22.22222222 | E124: =F124/D124 -> 922.5 | F124: 20500 | G124: =H124/D124 -> 585 | H124: 13000 | I124: =J124/D124 -> 427.5 | J124: 9500 | K124: =L124/D124 -> 202.5 | L124: 4500
A125: 45 х 120 х 2700/2985/3000/3985/4000 | D125: =1000/45 -> 22.22222222 | E125: =F125/D125 -> 922.5 | F125: 20500 | G125: =H125/D125 -> 585 | H125: 13000 | I125: =J125/D125 -> 427.5 | J125: 9500 | K125: =L125/D125 -> 202.5 | L125: 4500
A126: 27 х 105 х 2700/2985/3000/3985/4000 | D126: =1000/27 -> 37.03703704 | E126: =F126/D126 -> 553.5 | F126: 20500 | G126: =H126/D126 -> 351 | H126: 13000 | I126: =J126/D126 -> 256.5 | J126: 9500 | K126: =L126/D126 -> 121.5 | L126: 4500
A127: 30 х 105/120 х 2700/2985/3000/3985/4000 | D127: =1000/30 -> 33.33333333 | E127: =F127/D127 -> 615 | F127: 20500 | G127: =H127/D127 -> 390 | H127: 13000 | I127: =J127/D127 -> 285 | J127: 9500 | K127: =L127/D127 -> 135 | L127: 4500
A128: Брус клееный
A129: 105 х 105 х 3000/4000/4500 | D129: =1000/145 -> 6.896551724 | E129: =F129/D129 -> 3480 | F129: 24000 | G129: =H129/D129 -> 2726 | H129: 18800 | I129: =J129/D129 -> 1986.5 | J129: 13700 | K129: =L129/D129 -> 797.5 | L129: 5500
A130: Рейка
A131: 10х45х2700/3000/4000 | D131: =1000/10 -> 100 | E131: =F131/D131 -> 0 | F131: 0 | I131: =J131/D131 -> 95 | J131: 9500 | K131: =L131/D131 -> 40 | L131: 4000
A132: Прочие пиломатериалы
A134: Наименование продукции | C134: Ед. изм | F134: Цена
A135: Топливные гранулы | C135: тонна | F135: 6500
A142: Ознакомлен
